fUSD/lending_fUSD_20250804
["ID","MTS","AMOUNT","RATE_DAILY","PERIOD"]
[377228926,1754305878767,-422.32191181,0.0003863,2]
[377228927,1754305878777,-1598.25,0.0003863,2]
[377228928,1754305878787,-400.0,0.0003863,2]
[377228929,1754305878798,-400.0,0.0003863,2]
[377228930,1754305878807,-1192.41,0.0003863,2]
[377228931,1754305878817,-400.0,0.0003863,2]
[377228932,1754305878827,-400.0,0.0003863,2]
[377228933,1754305878838,-1116.34,0.0003863,2]
[377228934,1754305878847,-575.89,0.0003863,2]
[377228935,1754305878858,-668.58,0.0003863,2]
[377228936,1754305878868,-400.0,0.0003863,2]
[377228937,1754305878877,-400.0,0.0003863,2]
[377228938,1754305878887,-1214.62,0.0003863,2]
[377228939,1754305878902,-1137.04,0.0003863,2]
[377228940,1754305878912,-502.76588868,0.0003863,2]
[377228941,1754305878921,-400.0,0.0003863,2]
[377228942,1754305878932,-400.0,0.0003863,2]
[377228943,1754305878943,-400.0,0.0003863,2]
[377228944,1754305878952,-400.0,0.0003863,2]
[377228945,1754305878962,-400.0,0.0003863,2]
[377228946,1754305878975,-400.0,0.0003863,2]
[377228947,1754305878987,-1590.64,0.0003863,2]
[377228948,1754305878997,-400.0,0.0003863,2]
[377228949,1754305879008,-402.99923317,0.0003863,2]
[377228950,1754305879018,-400.0,0.0003863,2]
[377228951,1754305879028,-400.0,0.0003863,2]
[377228952,1754305879039,-400.0,0.0003863,2]
[377228953,1754305879049,-400.0,0.0003863,2]
[377228954,1754305879059,-1069.29,0.0003863,2]
[377228955,1754305879069,-1138.57,0.0003863,2]
[377228956,1754305879078,-400.0,0.0003863,2]
[377228957,1754305879088,-400.0,0.0003863,2]
[377228958,1754305879098,-400.0,0.0003863,2]
[377228959,1754305879108,-400.0,0.0003863,2]
[377228960,1754305879117,-400.0,0.0003863,2]
[377228961,1754305879127,-400.0,0.0003863,2]
[377228962,1754305879138,-400.0,0.0003863,2]
[377228963,1754305879148,-1131.33,0.0003863,2]
[377228964,1754305879158,-423.40568344,0.0003863,2]
[377228965,1754305879167,-400.0,0.0003863,2]
[377228966,1754305879177,-1171.06,0.0003863,2]
[377228967,1754305879188,-1384.7,0.0003863,2]
[377228968,1754305879198,-894.77,0.0003863,2]
[377228969,1754305879208,-638.844483,0.0003863,2]
[377228970,1754305879217,-461.85545745,0.0003863,2]
[377228971,1754305879227,-599.89,0.0003863,2]
[377228972,1754305879236,-2355.79,0.0003863,2]
[377228973,1754305879246,-773.66,0.0003863,2]
[377228974,1754305879255,-1091.28,0.0003863,2]
[377228975,1754305879264,-400.0,0.0003863,2]
[377228976,1754305879273,-400.0,0.0003863,2]
[377228977,1754305879283,-400.0,0.0003863,2]
[377228978,1754305879294,-2327.34,0.0003863,2]
[377228979,1754305879304,-501.83,0.0003863,2]
[377228980,1754305879314,-781.86,0.0003863,2]
[377228981,1754305879324,-447.62669954,0.0003863,2]
[377228982,1754305879335,-1915.51,0.0003863,2]
[377228983,1754305879346,-538.38,0.0003863,2]
[377228984,1754305879356,-400.0,0.0003863,2]
[377228985,1754305879366,-400.0,0.0003863,2]
[377228986,1754305879378,-892.62,0.0003863,2]
[377228987,1754305879388,-829.75,0.0003863,2]
[377228988,1754305879398,-1000.94,0.0003863,2]
[377228989,1754305879409,-400.0,0.0003863,2]
[377228990,1754305879419,-1098.02,0.0003863,2]
[377228991,1754305879430,-1453.05,0.0003863,2]
[377228992,1754305879441,-695.84,0.0003863,2]
[377228993,1754305879451,-400.0,0.0003863,2]
[377228994,1754305879461,-400.0,0.0003863,2]
[377228995,1754305879471,-437.7,0.0003863,2]
[377228996,1754305879481,-400.0,0.0003863,2]
[377228997,1754305879492,-1242.82,0.0003863,2]
[377228998,1754305879502,-357.23093234,0.0003863,2]
[377228999,1754305879513,-724.66,0.0003863,2]
[377229000,1754305879523,-1119.1,0.0003863,2]
[377229001,1754305879533,-2290.17,0.0003863,2]
[377229002,1754305879544,-1165.58,0.0003863,2]
[377229003,1754305879554,-917.85,0.0003863,2]
[377229004,1754305879564,-400.0,0.0003863,2]
[377229005,1754305879574,-400.0,0.0003863,2]
[377229006,1754305879584,-1308.63,0.0003863,2]
[377229007,1754305879594,-801.64,0.0003863,2]
[377229008,1754305879604,-400.0,0.0003863,2]
[377229009,1754305879615,-401.66575103,0.0003863,2]
[377229010,1754305879625,-22498.337891,0.0003863,2]
[377229011,1754305879635,-400.0,0.0003863,2]
[377229012,1754305879646,-906.75,0.0003863,2]
[377229013,1754305879656,-401.7514499,0.0003863,2]
[377229014,1754305879666,-564.37,0.0003863,2]
[377229015,1754305879676,-918.46,0.0003863,2]
[377229016,1754305879686,-1397.01,0.0003863,2]
[377229017,1754305879697,-1040.59,0.0003863,2]
[377229018,1754305879707,-2104.64,0.0003863,2]
[377229019,1754305879717,-400.0,0.0003863,2]
[377229020,1754305879727,-1874.18,0.0003863,2]
[377229021,1754305879738,-1334.51,0.0003863,2]
[377229022,1754305879748,-400.0,0.0003863,2]
[377229023,1754305879759,-781.51,0.0003863,2]
[377229024,1754305879776,-19484.196749,0.0003863,2]
[377229025,1754305879797,-1353.35,0.0003863,2]
[377229026,1754305879819,-400.0,0.0003863,2]
[377229027,1754305879833,-1021.01,0.0003863,2]
[377229028,1754305879843,-1387.83,0.0003863,2]
[377229029,1754305879853,-400.0,0.0003863,2]
[377229030,1754305879863,-22956.210367,0.0003863,2]
[377229031,1754305879874,-403.53831483,0.0003863,2]
[377229032,1754305879884,-400.0,0.0003863,2]
[377229033,1754305879896,-400.0,0.0003863,2]
[377229034,1754305879907,-400.0,0.0003863,2]
[377229035,1754305879917,-1025.08,0.0003863,2]
[377229036,1754305879927,-902.64,0.0003863,2]
[377229037,1754305879937,-400.0,0.0003863,2]
[377229038,1754305879947,-400.0,0.0003863,2]
[377229039,1754305879957,-627.8,0.0003863,2]
[377229040,1754305879967,-400.0,0.0003863,2]
[377229041,1754305879977,-400.0,0.0003863,2]
[377229042,1754305879987,-1868.95,0.0003863,2]
[377229043,1754305879997,-400.0,0.0003863,2]
[377229044,1754305880007,-1038.98,0.0003863,2]
[377229045,1754305880017,-1314.14,0.0003863,2]
[377229046,1754305880028,-468.7,0.0003863,2]
[377229047,1754305880037,-914.79,0.0003863,2]
[377229048,1754305880047,-400.0,0.0003863,2]
[377229049,1754305880058,-925.88,0.0003863,2]
[377229050,1754305880068,-400.0,0.0003863,2]
[377229051,1754305880078,-1014.44,0.0003863,2]
[377229052,1754305880088,-935.88,0.0003863,2]
[377229053,1754305880098,-400.0,0.0003863,2]
[377229054,1754305880109,-945.59982,0.0003863,2]
[377229055,1754305880119,-400.0,0.0003863,2]
[377229056,1754305880129,-590.39,0.0003863,2]
[377229057,1754305880139,-1614.1,0.0003863,2]
[377229058,1754305880150,-403.28415857,0.0003863,2]
[377229059,1754305880162,-1412.5,0.0003863,2]
[377229060,1754305880179,-400.0,0.0003863,2]
[377229061,1754305880191,-710.0,0.0003863,2]
[377229062,1754305880201,-608.78,0.0003863,2]
[377229063,1754305880211,-400.0,0.0003863,2]
[377229064,1754305880222,-400.0,0.0003863,2]
[377229065,1754305880232,-400.0,0.0003863,2]
[377229066,1754305880242,-695.98,0.0003863,2]
[377229067,1754305880252,-400.0,0.0003863,2]
[377229068,1754305880262,-400.0,0.0003863,2]
[377229069,1754305880272,-1252.59,0.0003863,2]
[377229070,1754305880283,-400.0,0.0003863,2]
[377229071,1754305880293,-856.19,0.0003863,2]
[377229072,1754305880303,-1142.6,0.0003863,2]
[377229073,1754305880314,-400.0,0.0003863,2]
[377229074,1754305880324,-400.0,0.0003863,2]
[377229075,1754305880334,-810.9,0.0003863,2]
[377229076,1754305880344,-400.0,0.0003863,2]
[377229077,1754305880354,-400.0,0.0003863,2]
[377229078,1754305880364,-400.0,0.0003863,2]
[377229079,1754305880375,-464.6057673,0.0003863,2]
[377229080,1754305880385,-793.48,0.0003863,2]
[377229081,1754305880395,-400.0,0.0003863,2]
[377229082,1754305880405,-1752.3,0.0003863,2]
[377229083,1754305880415,-400.0,0.0003863,2]
[377229084,1754305880425,-1639.2,0.0003863,2]
[377229085,1754305880437,-1057.57,0.0003863,2]
[377229086,1754305880447,-1899.23,0.0003863,2]
[377229087,1754305880457,-400.0,0.0003863,2]
[377229088,1754305880468,-1894.1,0.0003863,2]
[377229089,1754305880478,-400.0,0.0003863,2]
[377229090,1754305880488,-340.31430019,0.0003863,2]
[377229091,1754305880498,-400.0,0.0003863,2]
[377229092,1754305880509,-400.0,0.0003863,2]
[377229093,1754305880519,-400.0,0.0003863,2]
[377229094,1754305880529,-400.0,0.0003863,2]
[377229095,1754305880540,-400.0,0.0003863,2]
[377229096,1754305880550,-400.0,0.0003863,2]
[377229097,1754305880560,-1066.82,0.0003863,2]
[377229098,1754305880570,-461.68229485,0.0003863,2]
[377229099,1754305880580,-400.0,0.0003863,2]
[377229100,1754305880590,-394.65918741,0.0003863,2]
[377229101,1754305880600,-402.74244264,0.0003863,2]
[377229102,1754305880610,-1189.48,0.0003863,2]
[377229103,1754305880621,-405.69,0.0003863,2]
[377229104,1754305880631,-1326.33,0.0003863,2]
[377229105,1754305880641,-1704.15,0.0003863,2]
[377229106,1754305880652,-1046.61,0.0003863,2]
[377229107,1754305880662,-400.0,0.0003863,2]
[377229108,1754305880672,-464.14551515,0.0003863,2]
[377229109,1754305880682,-833.04,0.0003863,2]
[377229110,1754305880692,-400.0,0.0003863,2]
[377229111,1754305880702,-684.99,0.0003863,2]
[377229112,1754305880712,-596.8,0.0003863,2]
[377229113,1754305880722,-400.0,0.0003863,2]
[377229114,1754305880732,-400.0,0.0003863,2]
[377229115,1754305880742,-400.0,0.0003863,2]
[377229116,1754305880752,-925.69,0.0003863,2]
[377229117,1754305880762,-1612.63,0.0003863,2]
[377229118,1754305880772,-403.26147994,0.0003863,2]
[377229119,1754305880782,-482.48,0.0003863,2]
[377229120,1754305880792,-400.0,0.0003863,2]
[377229121,1754305880803,-400.0,0.0003863,2]
[377229122,1754305880815,-1463.3,0.0003863,2]
[377229123,1754305880825,-400.0,0.0003863,2]
[377229124,1754305880835,-151.0,0.0003863,14]
[377229125,1754305880846,-1295.25,0.0003863,2]
[377229126,1754305880857,-400.0,0.0003863,2]
[377229127,1754305880868,-2145.64,0.0003863,2]
[377229128,1754305880878,-400.0,0.0003863,2]
[377229129,1754305880888,-1283.66,0.0003863,2]
[377229130,1754305880901,-400.0,0.0003863,2]
[377229131,1754305880911,-758.52,0.0003863,2]
[377229132,1754305880921,-7192.74,0.0003863,2]
[377229133,1754305880931,-400.0,0.0003863,2]
[377229134,1754305880943,-721.69,0.0003863,2]
[377229135,1754305880953,-400.0,0.0003863,2]
[377229136,1754305880963,-400.0,0.0003863,2]
[377229137,1754305880974,-400.0,0.0003863,2]
[377229138,1754305880984,-988.46,0.0003863,2]
[377229139,1754305880995,-896.0,0.0003863,2]
[377229140,1754305881005,-627.97,0.0003863,2]
[377229141,1754305881016,-453.42,0.0003863,2]
[377229142,1754305881026,-766.66,0.0003863,2]
[377229143,1754305881037,-400.0,0.0003863,2]
[377229144,1754305881047,-400.0,0.0003863,2]
[377229145,1754305881057,-405.20181192,0.0003863,2]
[377229146,1754305881068,-400.0,0.0003863,2]
[377229147,1754305881077,-1762.88,0.0003863,2]
[377229148,1754305881088,-1472.33,0.0003863,2]
[377229149,1754305881098,-400.0,0.0003863,2]
[377229150,1754305881108,-400.0,0.0003863,2]
[377229151,1754305881119,-400.0,0.0003863,2]
[377229152,1754305881129,-400.0,0.0003863,2]
[377229153,1754305881139,-1303.02,0.0003863,2]
[377229154,1754305881150,-400.0,0.0003863,2]
[377229155,1754305881160,-400.0,0.0003863,2]
[377229156,1754305881176,-796.7,0.0003863,2]
[377229157,1754305881186,-1414.12,0.0003863,2]
[377229158,1754305881196,-986.33,0.0003863,2]
[377229159,1754305881206,-700.57,0.0003863,2]
[377229160,1754305881217,-400.0,0.0003863,2]
[377229161,1754305881227,-400.0,0.0003863,2]
[377229162,1754305881237,-466.94459235,0.0003863,2]
[377229163,1754305881248,-553.07,0.0003863,2]
[377229164,1754305881258,-400.0,0.0003863,2]
[377229165,1754305881268,-658.58,0.0003863,2]
[377229166,1754305881279,-400.0,0.0003863,2]
[377229167,1754305881289,-1321.92,0.0003863,2]
[377229168,1754305881299,-243.39807928,0.0003863,2]
[377229169,1754305881309,-400.0,0.0003863,2]
[377229170,1754305881319,-401.48127264,0.0003863,2]
[377229171,1754305881331,-400.0,0.0003863,2]
[377229172,1754305881341,-400.0,0.0003863,2]
[377229173,1754305881351,-499.21,0.0003863,2]
[377229174,1754305881362,-1836.51,0.0003863,2]
[377229175,1754305881372,-1050.51,0.0003863,2]
[377229176,1754305881383,-682.1,0.0003863,2]
[377229177,1754305881393,-739.68,0.0003863,2]
[377229178,1754305881403,-400.0,0.0003863,2]
[377229179,1754305881413,-1274.01,0.0003863,2]
[377229180,1754305881424,-400.0,0.0003863,2]
[377229181,1754305881434,-400.0,0.0003863,2]
[377229182,1754305881444,-651.05,0.0003863,2]
[377229183,1754305881454,-1303.02,0.0003863,2]
[377229184,1754305881465,-533.98688257,0.0003863,2]
[377229185,1754305881475,-400.0,0.0003863,2]
[377229186,1754305881485,-596.36,0.0003863,2]
[377229187,1754305881496,-400.0,0.0003863,2]
[377229188,1754305881506,-400.0,0.0003863,2]
[377229189,1754305881517,-999.83,0.0003863,2]
[377229190,1754305881526,-822.07,0.0003863,2]
[377229191,1754305881536,-1091.32,0.0003863,2]
[377229192,1754305881547,-400.0,0.0003863,2]
[377229193,1754305881557,-558.09,0.0003863,2]
[377229194,1754305881568,-400.0,0.0003863,2]
[377229195,1754305881578,-562.8,0.0003863,2]
[377229196,1754305881589,-1242.64,0.0003863,2]
[377229197,1754305881599,-400.0,0.0003863,2]
[377229198,1754305881610,-793.84,0.0003863,2]
[377229199,1754305881620,-1330.82,0.0003863,2]
[377229200,1754305881630,-400.0,0.0003863,2]
[377229201,1754305881641,-1446.54,0.0003863,2]
[377229202,1754305881651,-400.0,0.0003863,2]
[377229203,1754305881661,-1346.03,0.0003863,2]
[377229204,1754305881671,-528.1,0.0003863,2]
[377229205,1754305881682,-400.0,0.0003863,2]
[377229206,1754305881694,-151.724246,0.0003863,14]
[377229207,1754305881950,-1481.75,0.0003863,2]
[377229208,1754305881968,-400.0,0.0003863,2]
[377229209,1754305881994,-879.7,0.0003863,2]
[377229210,1754305882003,-1081.44,0.0003863,2]
[377229211,1754305882013,-400.0,0.0003863,2]
[377229212,1754305882023,-400.0,0.0003863,2]
[377229213,1754305882032,-400.0,0.0003863,2]
[377229214,1754305882041,-2294.74,0.0003863,2]
[377229215,1754305882050,-400.0,0.0003863,2]
[377229216,1754305882059,-768.31,0.0003863,2]
[377229217,1754305882068,-2185.11,0.0003863,2]
[377229218,1754305882077,-400.0,0.0003863,2]
[377229219,1754305882086,-400.0,0.0003863,2]
[377229220,1754305882096,-462.07376058,0.0003863,2]
[377229221,1754305882106,-764.62,0.0003863,2]
[377229222,1754305882115,-400.0,0.0003863,2]
[377229223,1754305882124,-400.0,0.0003863,2]
[377229224,1754305882134,-2154.11,0.0003863,2]
[377229225,1754305882143,-400.0,0.0003863,2]
[377229226,1754305882153,-400.0,0.0003863,2]
[377229227,1754305882163,-670.62,0.0003863,2]
[377229228,1754305882173,-151.724431,0.0003863,14]
[377229229,1754305882183,-1797.87,0.0003863,2]
[377229230,1754305882194,-1687.51,0.0003863,2]
[377229231,1754305882204,-400.0,0.0003863,2]
[377229232,1754305882213,-467.50618004,0.0003863,2]
[377229233,1754305882223,-884.68,0.0003863,2]
[377229234,1754305882233,-400.0,0.0003863,2]
[377229235,1754305882242,-466.07,0.0003863,2]
[377229236,1754305882252,-400.0,0.0003863,2]
[377229237,1754305882261,-659.47,0.0003863,2]
[377229238,1754305882271,-1427.05,0.0003863,2]
[377229239,1754305882281,-1547.49,0.0003863,2]
[377229240,1754305882291,-430.38,0.0003863,2]
[377229241,1754305882301,-400.0,0.0003863,2]
[377229242,1754305882311,-400.0,0.0003863,2]
[377229243,1754305882320,-948.07,0.0003863,2]
[377229244,1754305882330,-400.0,0.0003863,2]
[377229245,1754305882339,-400.0,0.0003863,2]
[377229246,1754305882349,-1424.69,0.0003863,2]
[377229247,1754305882359,-400.0,0.0003863,2]
[377229248,1754305882368,-1692.45,0.0003863,2]
[377229249,1754305882377,-400.0,0.0003863,2]
[377229250,1754305882386,-400.0,0.0003863,2]
[377229251,1754305882396,-151.0,0.0003863,14]
[377229252,1754305882406,-400.98727849,0.0003863,2]
[377229253,1754305882415,-1068.48,0.0003863,2]
[377229254,1754305882425,-870.74,0.0003863,2]
[377229255,1754305882434,-400.0,0.0003863,2]
[377229256,1754305882444,-1630.8,0.0003863,2]
[377229257,1754305882453,-1702.7,0.0003863,2]
[377229258,1754305882463,-469.7,0.0003863,2]
[377229259,1754305882473,-400.0,0.0003863,2]
[377229260,1754305882483,-400.0,0.0003863,2]
[377229261,1754305882493,-400.0,0.0003863,2]
[377229262,1754305882503,-727.65,0.0003863,2]
[377229263,1754305882514,-840.48,0.0003863,2]
[377229264,1754305882524,-665.52,0.0003863,2]
[377229265,1754305882535,-241.68836849,0.0003863,2]
[377229266,1754305882546,-400.0,0.0003863,2]
[377229267,1754305882555,-400.0,0.0003863,2]
[377229268,1754305882565,-1107.78,0.0003863,2]
[377229269,1754305882575,-1880.84,0.0003863,2]
[377229270,1754305882584,-401.18411574,0.0003863,2]
[377229271,1754305882593,-400.0,0.0003863,2]
[377229272,1754305882603,-813.9,0.0003863,2]
[377229273,1754305882613,-400.0,0.0003863,2]
[377229274,1754305882623,-874.7,0.0003863,2]
[377229275,1754305882633,-400.0,0.0003863,2]
[377229276,1754305882642,-400.0,0.0003863,2]
[377229277,1754305882652,-400.0,0.0003863,2]
[377229278,1754305882662,-426.16,0.0003863,2]
[377229279,1754305882672,-404.19297204,0.0003863,2]
[377229280,1754305882681,-400.0,0.0003863,2]
[377229281,1754305882691,-665.68,0.0003863,2]
[377229282,1754305882701,-400.0,0.0003863,2]
[377229283,1754305882711,-1110.47,0.0003863,2]
[377229284,1754305882720,-1358.5,0.0003863,2]
[377229285,1754305882730,-400.0,0.0003863,2]
[377229286,1754305882740,-903.87,0.0003863,2]
[377229287,1754305882749,-470.81,0.0003863,2]
[377229288,1754305882759,-400.0,0.0003863,2]
[377229289,1754305882768,-994.67,0.0003863,2]
[377229290,1754305882778,-472.86,0.0003863,2]
[377229291,1754305882787,-440.85,0.0003863,2]
[377229292,1754305882797,-1647.73,0.0003863,2]
[377229293,1754305882806,-1246.04,0.0003863,2]
[377229294,1754305882817,-924.22,0.0003863,2]
[377229295,1754305882826,-1443.42,0.0003863,2]
[377229296,1754305882835,-979.61,0.0003863,2]
[377229297,1754305882845,-770.36,0.0003863,2]
[377229298,1754305882854,-1946.52,0.0003863,2]
[377229299,1754305882863,-400.0,0.0003863,2]
[377229300,1754305882873,-400.0,0.0003863,2]
[377229301,1754305882883,-482.35,0.0003863,2]
[377229302,1754305882892,-400.0,0.0003863,2]
[377229303,1754305882906,-400.0,0.0003863,2]
[377229304,1754305882915,-400.0,0.0003863,2]
[377229305,1754305882924,-2101.73,0.0003863,2]
[377229306,1754305882934,-860.7,0.0003863,2]
[377229307,1754305882946,-645.5,0.0003863,2]
[377229308,1754305882956,-537.4,0.0003863,2]
[377229309,1754305882965,-537.04,0.0003863,2]
[377229310,1754305882975,-450.14,0.0003863,2]
[377229311,1754305882985,-798.27,0.0003863,2]
[377229312,1754305882996,-400.0,0.0003863,2]
[377229313,1754305883005,-400.0,0.0003863,2]
[377229314,1754305883014,-1175.36,0.0003863,2]
[377229315,1754305883026,-456.48,0.0003863,2]
[377229316,1754305883035,-400.0,0.0003863,2]
[377229317,1754305883047,-1154.12,0.0003863,2]
[377229318,1754305883056,-1226.27,0.0003863,2]
[377229319,1754305883067,-939.52,0.0003863,2]
[377229320,1754305883077,-400.0,0.0003863,2]
[377229321,1754305883086,-400.0,0.0003863,2]
[377229322,1754305883096,-700.37,0.0003863,2]
[377229323,1754305883105,-786.99,0.0003863,2]
[377229324,1754305883115,-842.4,0.0003863,2]
[377229325,1754305883125,-400.0,0.0003863,2]
[377229326,1754305883135,-869.19,0.0003863,2]
[377229327,1754305883145,-400.0,0.0003863,2]
[377229328,1754305883154,-991.24,0.0003863,2]
[377229329,1754305883163,-400.0,0.0003863,2]
[377229330,1754305883173,-1000.94,0.0003863,2]
[377229331,1754305883182,-1791.49,0.0003863,2]
[377229332,1754305883192,-1221.49,0.0003863,2]
[377229333,1754305883201,-400.0,0.0003863,2]
[377229334,1754305883211,-462.583697,0.0003863,2]
[377229335,1754305883221,-1747.77,0.0003863,2]
[377229336,1754305883231,-400.95293028,0.0003863,2]
[377229337,1754305883240,-400.0,0.0003863,2]
[377229338,1754305883250,-400.0,0.0003863,2]
[377229339,1754305883260,-1316.83,0.0003863,2]
[377229340,1754305883269,-400.0,0.0003863,2]
[377229341,1754305883279,-755.49,0.0003863,2]
[377229342,1754305883288,-1344.32,0.0003863,2]
[377229343,1754305883298,-400.0,0.0003863,2]
[377229344,1754305883307,-736.813336,0.0003863,2]
[377229345,1754305883317,-1539.3,0.0003863,2]
[377229346,1754305883327,-778.88,0.0003863,2]
[377229347,1754305883337,-400.0,0.0003863,2]
[377229348,1754305883347,-444.22,0.0003863,2]
[377229349,1754305883356,-400.0,0.0003863,2]
[377229350,1754305883366,-1258.35,0.0003863,2]
[377229351,1754305883375,-472.180256,0.0003863,2]
[377229352,1754305883385,-400.0,0.0003863,2]
[377229353,1754305883395,-400.0,0.0003863,2]
[377229354,1754305883404,-400.0,0.0003863,2]
[377229355,1754305883414,-400.0,0.0003863,2]
[377229356,1754305883423,-1113.84,0.0003863,2]
[377229357,1754305883433,-402.81090428,0.0003863,2]
[377229358,1754305883443,-400.0,0.0003863,2]
[377229359,1754305883452,-1182.86,0.0003863,2]
[377229360,1754305883462,-752.876045,0.0003863,2]
[377229361,1754305883473,-4729.89,0.0003863,2]
[377229362,1754305883483,-1278.85,0.0003863,2]
[377229363,1754305883492,-400.0,0.0003863,2]
[377229364,1754305883502,-454.82,0.0003863,2]
[377229365,1754305883512,-492.55,0.0003863,2]
[377229366,1754305883521,-1031.98,0.0003863,2]
[377229367,1754305883531,-775.41,0.0003863,2]
[377229368,1754305883540,-400.0,0.0003863,2]
[377229369,1754305883550,-400.0,0.0003863,2]
[377229370,1754305883560,-1202.77,0.0003863,2]
[377229371,1754305883569,-400.0,0.0003863,2]
[377229372,1754305883579,-1481.93,0.0003863,2]
[377229373,1754305883590,-400.0,0.0003863,2]
[377229374,1754305883599,-400.0,0.0003863,2]
[377229375,1754305883609,-584.39,0.0003863,2]
[377229376,1754305883618,-815.04,0.0003863,2]
[377229377,1754305883628,-1675.62,0.0003863,2]
[377229378,1754305883638,-400.0,0.0003863,2]
[377229379,1754305883648,-679.61,0.0003863,2]
[377229380,1754305883658,-744.37,0.0003863,2]
[377229381,1754305883667,-400.0,0.0003863,2]
[377229382,1754305883677,-2502.12,0.0003863,2]
[377229383,1754305883686,-1340.53,0.0003863,2]
[377229384,1754305883697,-1484.28,0.0003863,2]
[377229385,1754305883707,-400.0,0.0003863,2]
[377229386,1754305883717,-1012.72,0.0003863,2]
[377229387,1754305883726,-400.0,0.0003863,2]
[377229388,1754305883736,-2328.28,0.0003863,2]
[377229389,1754305883745,-1969.15,0.0003863,2]
[377229390,1754305883755,-400.0,0.0003863,2]
[377229391,1754305883765,-400.0,0.0003863,2]
[377229392,1754305883774,-1435.3,0.0003863,2]
[377229393,1754305883784,-400.0,0.0003863,2]
[377229394,1754305883793,-400.0,0.0003863,2]
[377229395,1754305883802,-913.42,0.0003863,2]
[377229396,1754305883812,-400.0,0.0003863,2]
[377229397,1754305883821,-1703.95,0.0003863,2]
[377229398,1754305883831,-741.38,0.0003863,2]
[377229399,1754305883841,-400.0,0.0003863,2]
[377229400,1754305883851,-400.0,0.0003863,2]
[377229401,1754305883861,-2504.25,0.0003863,2]
[377229402,1754305883870,-464.07667612,0.0003863,2]
[377229403,1754305883880,-400.0,0.0003863,2]
[377229404,1754305883890,-1237.75,0.0003863,2]
[377229405,1754305883903,-400.0,0.0003863,2]
[377229406,1754305883912,-400.0,0.0003863,2]
[377229407,1754305883921,-1030.22,0.0003863,2]
[377229408,1754305883931,-400.0,0.0003863,2]
[377229409,1754305883941,-400.0,0.0003863,2]
[377229410,1754305883950,-401.50687413,0.0003863,2]
[377229411,1754305883960,-400.0,0.0003863,2]
[377229412,1754305883970,-400.0,0.0003863,2]
[377229413,1754305883979,-400.0,0.0003863,2]
[377229414,1754305883990,-400.0,0.0003863,2]
[377229415,1754305884000,-623.67,0.0003863,2]
[377229416,1754305884010,-400.0,0.0003863,2]
[377229417,1754305884019,-992.32,0.0003863,2]
[377229418,1754305884029,-400.0,0.0003863,2]
[377229419,1754305884038,-602.81,0.0003863,2]
[377229420,1754305884048,-956.99,0.0003863,2]
[377229421,1754305884058,-400.0,0.0003863,2]
[377229422,1754305884068,-630.59,0.0003863,2]
[377229423,1754305884078,-400.0,0.0003863,2]
[377229424,1754305884088,-537.5,0.0003863,2]
[377229425,1754305884098,-406.67062765,0.0003863,2]